bitfinex-derivatives/quotes_ETHF0:USTF0_20250621
["timestamp","ask_amount","ask_price","bid_price","bid_amount"]
[1750472600791,1.36997652,2423.1,2423.0,19.34590473]
[1750472600985,2.60790652,2423.1,2423.0,18.10792473]
[1750472601792,1.36997652,2423.1,2423.0,18.10792473]
[1750472602385,1.36997652,2423.1,2423.0,19.34590473]
[1750472602993,2.60790652,2423.1,2423.0,18.10792473]
[1750472603396,2.60790652,2423.1,2423.0,5.72386369]
[1750472605291,1.23798,2423.0,2422.9,7.0839]
[1750472605493,2.60795652,2423.0,2422.9,12.14486369]
[1750472606000,2.60795652,2423.0,2422.9,2.0364]
[1750472607502,1.36997652,2423.0,2422.9,3.27443]
[1750472607799,2.60795652,2423.0,2422.9,3.27443]
[1750472607999,2.60795652,2423.0,2422.9,2.0364]
[1750472608188,2.60795652,2423.0,2422.9,3.27443]
[1750472608906,1.36997652,2423.0,2422.9,6.95589369]
[1750472609200,2.60795652,2423.0,2422.9,6.95589369]
[1750472612003,1.36997652,2423.0,2422.9,6.95589369]
[1750472612203,2.60795652,2423.0,2422.9,6.95589369]
[1750472613203,2.60795652,2423.0,2422.9,5.71786369]
[1750472613505,2.60795652,2423.0,2422.9,6.95589369]
[1750472614305,2.60795652,2423.0,2422.9,5.78633968]
[1750472614908,2.60795652,2423.0,2422.9,7.02436968]
[1750472615110,1.23798,2423.0,2422.9,7.02436968]
[1750472615410,1.23797,2423.1,2422.9,7.02436968]
[1750472615611,1.23797,2423.1,2423.0,1.4116]
[1750472616111,2.60457381,2423.1,2423.0,1.4116]
[1750472616908,1.23798,2423.0,2422.9,0.72537599]
[1750472617109,2.60458381,2423.0,2422.9,0.06847599]
[1750472617410,3.19848381,2423.0,2422.9,0.06847599]
[1750472619400,2.60458381,2423.0,2422.9,0.06847599]
[1750472619703,2.60458381,2423.0,2422.9,1.45407599]
[1750472626018,1.36660381,2423.0,2422.9,5.13553968]
[1750472626705,2.60458381,2423.0,2422.9,5.13553968]
[1750472626903,1.36660381,2423.0,2422.9,6.37356968]
[1750472627301,1.36660381,2423.0,2422.9,16.37356968]
[1750472627506,1.36660381,2423.0,2422.9,19.58136968]
[1750472629904,1.23791,2423.2,2423.0,1.23796]
[1750472630110,1.23791,2423.2,2423.1,1.3947]
[1750472630416,2.60374217,2423.2,2423.1,5.07616369]
[1750472630610,2.60374217,2423.2,2423.1,15.07616369]
[1750472633807,1.36583217,2423.2,2423.1,15.07616369]
[1750472634216,2.60371217,2423.2,2423.1,15.07616369]
[1750472637418,2.60356923,2423.2,2423.1,15.07616369]
[1750472638419,2.60356923,2423.2,2423.1,21.49116369]
[1750472638620,2.60356923,2423.2,2423.1,15.07616369]
[1750472639220,1.36568923,2423.2,2423.1,21.49116369]
[1750472639418,2.60356923,2423.2,2423.1,21.49116369]
[1750472640419,1.36568923,2423.2,2423.1,16.31409369]
[1750472640620,1.36568923,2423.2,2423.1,22.72909369]
[1750472642219,2.60356923,2423.2,2423.1,21.49116369]
[1750472643623,2.60356923,2423.2,2423.1,1.3947]
[1750472643816,1.23793,2423.1,2423.0,0.6892]
[1750472644018,2.60361923,2423.1,2423.0,0.6892]
[1750472644216,1.36568923,2423.1,2423.0,16.75472473]
[1750472644417,1.36568923,2423.1,2423.0,18.08452473]
[1750472644725,1.36568923,2423.1,2423.0,19.32250473]
[1750472644917,1.36568923,2423.1,2423.0,18.08452473]
[1750472645623,2.60361923,2423.1,2423.0,18.08452473]
[1750472646017,2.60361923,2423.1,2423.0,5.70046369]
[1750472648726,1.36568923,2423.1,2423.0,5.70046369]
[1750472648924,1.36568923,2423.1,2423.0,6.93844369]
[1750472649321,1.36568923,2423.2,2423.0,6.93844369]
[1750472649623,1.36568923,2423.2,2423.1,6.20629369]
[1750472649820,1.36568923,2423.2,2423.1,6.27476968]
[1750472650026,1.36568923,2423.2,2423.1,16.27476968]
[1750472650418,1.23775,2423.5,2423.2,1.23784]
[1750472650622,1.3671037,2423.4,2423.3,3.22163]
[1750472650923,1.3671037,2423.4,2423.3,7.57109369]
[1750472651131,1.3671037,2423.4,2423.3,17.57109369]
[1750472654331,1.23765,2423.7,2423.5,1.2377]
[1750472654530,1.23765,2423.7,2423.6,1.4151]
[1750472654729,2.60406023,2423.7,2423.6,2.0734]
[1750472656734,1.23776,2423.5,2423.3,1.93471]
[1750472656935,1.23776,2423.5,2423.4,10.09646369]
[1750472657127,2.60704577,2423.6,2423.4,10.09646369]
[1750472657437,1.23771,2423.6,2423.5,3.68146369]
[1750472657632,2.6064235,2423.6,2423.5,3.68146369]
[1750472664147,1.23773,2423.5,2423.4,7.8326]
[1750472664444,2.6064435,2423.5,2423.4,17.8326]
[1750472664742,2.6064435,2423.5,2423.4,3.68146369]
[1750472665143,2.6064435,2423.5,2423.4,5.02976369]
[1750472665443,2.60672537,2423.5,2423.4,5.02976369]
[1750472667849,1.23778,2423.4,2423.3,7.0733]
[1750472668050,2.60677537,2423.4,2423.3,10.75476369]
[1750472668550,2.60677537,2423.4,2423.3,12.07446369]
[1750472668950,1.36899537,2423.4,2423.3,12.07446369]
[1750472669139,2.60677537,2423.4,2423.3,12.07446369]
[1750472672248,1.36899537,2423.4,2423.3,4.91929369]
[1750472672641,1.36899537,2423.4,2423.3,14.91929369]
[1750472672841,1.36899537,2423.4,2423.3,16.94129369]
[1750472673552,1.36899537,2423.5,2423.3,16.94129369]
[1750472673850,2.60672537,2423.5,2423.4,5.72036369]
[1750472675155,1.36899537,2423.5,2423.4,18.10442473]
[1750472675457,1.23772,2423.6,2423.4,18.10442473]
[1750472675749,1.23772,2423.6,2423.5,5.07186369]
[1750472676053,2.60782114,2423.6,2423.5,5.07186369]
[1750472680547,1.37010114,2423.6,2423.5,5.07186369]
[1750472680851,2.60778114,2423.6,2423.5,5.07186369]
[1750472685654,1.23773,2423.5,2423.4,0.7063]
[1750472685953,2.60783114,2423.5,2423.4,0.7063]
[1750472686457,2.60783114,2423.5,2423.4,2.016]
[1750472688464,1.37010114,2423.5,2423.4,2.016]
[1750472688758,1.37010114,2423.5,2423.4,15.69746369]
[1750472688958,2.60783114,2423.5,2423.4,15.69746369]
[1750472693556,2.60783114,2423.5,2423.4,12.016]
[1750472693758,2.60783114,2423.5,2423.4,15.69746369]
[1750472696362,2.60783114,2423.5,2423.4,5.69746369]
[1750472697455,2.60783114,2423.5,2423.4,2.016]
[1750472697962,2.60783114,2423.5,2423.4,5.69746369]
[1750472707373,2.60783114,2423.5,2423.4,15.69746369]
[1750472710675,2.60783114,2423.5,2423.4,15.69746369]
[1750472717975,2.60783114,2423.5,2423.4,12.016]
[1750472718964,2.60783114,2423.5,2423.4,15.69746369]
[1750472720976,2.60783114,2423.5,2423.4,17.36592823]
[1750472724380,2.60783114,2423.5,2423.4,7.36592823]
[1750472729578,1.37010114,2423.5,2423.4,18.60370823]
[1750472729884,1.37010114,2423.5,2423.4,17.36592823]
[1750472730283,2.60783114,2423.5,2423.4,17.36592823]
[1750472730581,1.37010114,2423.5,2423.4,17.36592823]
[1750472732282,2.60783114,2423.5,2423.4,17.36592823]
[1750472733991,2.60783114,2423.5,2423.4,22.09746369]
[1750472737392,2.60783114,2423.5,2423.4,2.016]
[1750472737688,1.23783,2423.3,2423.2,9.6078]
[1750472737878,1.23783,2423.3,2423.2,13.96936369]
[1750472738079,2.60793114,2423.3,2423.2,15.25666369]
[1750472744492,2.60793114,2423.3,2423.2,16.49454369]
[1750472744687,1.37010114,2423.3,2423.2,17.15944369]
[1750472746393,2.60793114,2423.3,2423.2,17.15944369]
[1750472746690,2.60793114,2423.3,2423.2,15.92156369]
[1750472747386,2.60793114,2423.3,2423.2,17.15944369]
[1750472748694,2.60793114,2423.3,2423.2,15.92156369]
[1750472748994,1.37010114,2423.3,2423.2,15.92156369]
[1750472749495,2.60793114,2423.3,2423.2,15.92156369]
[1750472749797,2.60793114,2423.3,2423.2,17.59002823]
[1750472754300,2.60793114,2423.3,2423.2,13.90856454]
[1750472754599,2.60793114,2423.3,2423.2,17.59002823]
[1750472754900,1.23783,2423.3,2423.2,17.59002823]
[1750472755501,2.59746891,2423.3,2423.2,17.59002823]
[1750472757500,2.59746891,2423.3,2423.2,6.84366454]
[1750472757702,2.59746891,2423.3,2423.2,6.16356454]
[1750472758700,2.59746891,2423.3,2423.2,9.84502823]
[1750472759802,2.59746891,2423.3,2423.2,8.55772823]
[1750472760104,2.59746891,2423.3,2423.2,4.87626454]
[1750472760594,1.23793,2423.1,2423.0,1.282]
[1750472760904,1.23798,2423.0,2422.9,3.68146369]
[1750472761204,2.59761891,2423.0,2422.9,5.10136369]
[1750472762007,2.59761891,2423.0,2422.9,6.76982823]
[1750472762899,2.59761891,2423.0,2422.9,5.10136369]
[1750472764506,2.59761891,2423.0,2422.9,5.16983968]
[1750472766616,2.59761891,2423.0,2422.9,1.48837599]
[1750472766818,2.59761891,2423.0,2422.9,0.06847599]
[1750472768725,2.59761891,2423.0,2422.9,1.46187599]
[1750472770225,2.59761891,2423.0,2422.9,5.14333968]
[1750472770524,2.59761891,2423.0,2422.9,7.52801535]
[1750472771223,1.35963891,2423.0,2422.9,8.76604535]
[1750472771427,1.23798,2423.0,2422.9,7.52801535]
[1750472776932,1.23798,2423.0,2422.9,5.14333968]
[1750472777929,2.59662445,2423.0,2422.9,5.14333968]
[1750472778826,2.59662445,2423.0,2422.9,0.06847599]
[1750472779528,2.59662445,2423.0,2422.9,1.40707599]
[1750472781534,1.35864445,2423.0,2422.9,1.40707599]
[1750472781724,1.23798,2423.0,2422.9,5.08853968]
[1750472782731,1.23798,2423.0,2422.9,6.32656968]
[1750472783127,1.23797,2423.1,2422.9,6.32656968]
[1750472783326,1.23797,2423.1,2423.0,5.01776369]
[1750472783629,2.59754119,2423.1,2423.0,5.01776369]
[1750472783830,2.59754119,2423.1,2423.0,1.3363]
[1750472784133,2.59762601,2423.1,2423.0,1.3363]
[1750472784924,2.59762601,2423.1,2423.0,3.00522142]
[1750472785327,1.35965601,2423.1,2423.0,4.24320142]
[1750472785632,2.59758601,2423.1,2423.0,4.24320142]
[1750472788237,2.59758601,2423.1,2423.0,3.00522142]
[1750472788645,1.35965601,2423.1,2423.0,3.00522142]
[1750472788934,2.59758601,2423.1,2423.0,3.00522142]
[1750472795946,2.59758601,2423.1,2423.0,3.07369741]
[1750472801054,2.59758601,2423.1,2423.0,6.7551611]
[1750472807359,2.59758601,2423.1,2423.0,3.07369741]
[1750472807658,2.59758601,2423.1,2423.0,6.7551611]
[1750472809365,2.59758601,2423.1,2423.0,3.07369741]
[1750472809557,2.59758601,2423.1,2423.0,6.7551611]
[1750472812762,2.59758601,2423.1,2423.0,5.08623968]
[1750472818567,2.59758601,2423.1,2423.0,1.40477599]
[1750472818868,2.59758601,2423.1,2423.0,5.08623968]
[1750472821772,2.59758601,2423.1,2423.0,0.06847599]
[1750472825179,9.934482,2423.1,2423.0,5.99e-06]
[1750472825678,11.186982,2423.1,2423.0,5.99e-06]
[1750472826072,8.72680743,2423.1,2423.0,5.99e-06]
[1750472835484,40.08580743,2423.1,2423.0,5.99e-06]
[1750472842391,46.75472885,2423.1,2423.0,5.99e-06]
[1750472842591,1.23829,2422.4,2422.3,0.6732]
[1750472842894,1.23839,2422.2,2422.1,3.53739405]
[1750472843195,1.23839,2422.2,2422.1,13.53739405]
[1750472843484,1.23839,2422.2,2422.1,17.21885774]
[1750472843692,1.23839,2422.2,2422.1,17.86815774]
[1750472844385,1.23839,2422.2,2422.1,7.86815774]
[1750472844586,1.23839,2422.2,2422.1,14.33076369]
[1750472845081,2.59746944,2422.2,2422.1,14.33076369]
[1750472846196,2.59746944,2422.2,2422.1,15.65666369]
[1750472846696,2.59733365,2422.2,2422.1,15.65666369]
[1750472847185,2.59733365,2422.2,2422.1,14.33076369]
[1750472847393,5.80513365,2422.2,2422.1,14.33076369]
[1750472847692,5.80513365,2422.2,2422.1,4.33076369]
[1750472847890,5.80513365,2422.2,2421.8,2.99482142]
[1750472848095,1.23855,2421.9,2421.8,10.0]
[1750472848491,1.23855,2421.9,2421.8,13.68146369]
[1750472849196,1.23855,2421.9,2421.8,14.35336369]
[1750472850493,6.23549734,2421.9,2421.0,9.5948]
[1750472850799,1.23866,2421.7,2421.6,3.2078]
[1750472850990,2.59743592,2421.7,2421.6,12.37733]
[1750472851295,1.23852,2422.0,2421.7,1.23863]
[1750472851503,1.23852,2422.0,2421.9,5.35038511]
[1750472851692,1.23852,2422.0,2421.9,3.68146369]
[1750472851994,1.23852,2422.0,2421.9,12.85099369]
[1750472853901,1.23852,2422.0,2421.9,13.53029369]
[1750472854592,1.23852,2422.0,2421.9,16.73809369]
[1750472854792,1.23852,2422.0,2421.9,16.80656968]
[1750472859800,3.2078,2422.5,2421.9,23.04508968]
[1750472859801,1.23846,2422.1,2421.9,23.04508968]
[1750472860001,1.23846,2422.1,2422.0,11.73338511]
[1750472860201,1.23846,2422.1,2422.0,13.04898511]
[1750472860401,1.23846,2422.1,2422.0,22.21851511]
[1750472861491,1.23846,2422.1,2422.0,22.87501511]
[1750472861896,1.23846,2422.1,2422.0,21.20609369]
[1750472864500,2.59783835,2422.1,2422.0,21.20609369]
[1750472864700,1.23846,2422.1,2422.0,14.82309369]
[1750472865000,2.59783096,2422.1,2422.0,5.65356369]
[1750472865192,2.59783096,2422.1,2422.0,0.6565]
[1750472866608,1.23849,2422.0,2421.9,0.06847599]
[1750472866904,2.59786096,2422.0,2421.9,3.74993968]
[1750472867294,4.98437483,2422.0,2421.9,0.06847599]
[1750472870303,1.23865,2421.7,2421.6,9.5918]
[1750472870506,2.59802096,2421.7,2421.6,18.76133]
[1750472870703,2.59802096,2421.7,2421.6,16.05879369]
[1750472870899,2.59802096,2421.7,2421.6,3.68146369]
[1750472871100,2.59802096,2421.7,2421.6,12.85099369]
[1750472871409,2.59802096,2421.7,2421.6,3.68146369]
[1750472872305,1.35937096,2421.7,2421.1,2.38651387]
[1750472872510,1.2388,2421.4,2421.3,0.7063]
[1750472873007,2.59817096,2421.4,2421.3,9.87583]
[1750472878210,2.59817096,2421.4,2421.3,9.16953]
[1750472878410,4.98468483,2421.4,2421.3,9.16953]
[1750472878607,3.74588483,2421.4,2420.6,3.9102]
[1750472878912,1.23916,2420.7,2420.6,12.2001]
[1750472879115,1.23903,2421.0,2420.6,14.58661387]
[1750472879305,1.23901,2421.0,2420.9,5.59431387]
[1750472879505,1.23901,2421.0,2420.9,2.70690039]
[1750472879809,1.23901,2421.0,2420.9,8.2899]
[1750472880006,1.23901,2421.0,2420.9,8.9598]
[1750472880915,1.23899,2421.1,2420.9,13.40666]
[1750472881114,1.23901,2421.0,2420.9,12.1676]
[1750472881513,1.23901,2421.0,2420.9,13.40666]
[1750472881712,1.23901,2421.0,2420.9,12.1676]
[1750472882018,0.7046,2421.5,2420.9,19.55411387]
[1750472882308,1.23891,2421.2,2421.1,2.38651387]
[1750472882819,1.23891,2421.2,2421.1,10.67641387]
[1750472883414,1.23884,2421.4,2421.1,10.67641387]
[1750472883602,1.23885,2421.3,2421.2,0.6537]
[1750472884005,1.23885,2421.3,2421.2,8.9436]
[1750472889621,1.23885,2421.3,2421.2,0.6537]
[1750472891024,1.2389,2421.2,2421.1,0.06847599]
[1750472891326,1.2389,2421.2,2421.1,8.35837599]
[1750472891623,1.2389,2421.2,2421.1,0.06847599]
[1750472892428,2.59987957,2421.2,2421.1,0.06847599]
[1750472893328,1.2389,2421.2,2421.1,0.06847599]
[1750472893526,2.59996398,2421.2,2421.1,1.41607599]
[1750472893925,1.2389,2421.2,2421.1,1.41607599]
[1750472894320,2.59999675,2421.2,2421.1,1.41607599]
[1750472898123,4.98651062,2421.2,2421.1,1.41607599]
[1750472898326,4.98651062,2421.2,2421.1,0.06847599]
[1750472899027,2.59999675,2421.2,2421.1,0.06847599]
[1750472899628,4.98651062,2421.2,2421.1,0.06847599]
[1750472899825,1.23911,2420.8,2420.7,3.03081387]
[1750472900124,1.23911,2420.8,2420.7,11.32071387]
[1750472900324,1.23911,2420.8,2420.7,11.64675662]
[1750472901024,1.23911,2420.8,2420.7,12.29895662]
[1750472901929,1.23911,2420.8,2420.7,13.53811662]
[1750472902130,1.23911,2420.8,2420.7,12.29895662]
[1750472903631,1.23909,2420.9,2420.7,13.53811662]
[1750472903929,1.23909,2420.9,2420.8,3.2078]
[1750472904232,2.60433812,2420.9,2420.8,3.2078]
[1750472904423,2.60433812,2420.9,2420.8,11.4977]
[1750472905231,2.60433812,2420.9,2420.8,12.73681]
[1750472905423,2.60433812,2420.9,2420.8,11.4977]
[1750472906123,2.60393244,2420.9,2420.8,11.4977]
[1750472906733,1.23909,2420.9,2420.8,11.4977]
[1750472910238,0.7053,2421.3,2420.8,11.4977]
[1750472910435,1.23897,2421.1,2421.0,2.38651387]
[1750472910634,2.6036827,2421.1,2421.0,2.38651387]
[1750472910837,1.3647127,2421.1,2421.0,12.60932387]
[1750472911038,2.6036627,2421.1,2421.0,14.00322387]
[1750472911236,2.6036627,2421.1,2421.0,12.76421387]
[1750472912239,2.6036627,2421.1,2421.0,14.00322387]
[1750472912640,1.3647127,2421.1,2421.0,14.00322387]
[1750472913054,2.6036627,2421.1,2421.0,12.76421387]
[1750472914548,2.6036627,2421.1,2421.0,12.83268986]
[1750472914752,2.6036627,2421.1,2421.0,14.07169986]
[1750472914947,1.3647127,2421.1,2421.0,14.07169986]
[1750472915446,1.23895,2421.1,2421.0,14.07169986]
[1750472915645,1.23894,2421.2,2421.0,14.07169986]
[1750472915946,1.23894,2421.2,2421.1,1.401]
[1750472916149,2.60378493,2421.2,2421.1,1.401]
[1750472916345,2.60378493,2421.2,2421.1,9.6909]
[1750472923453,1.36484493,2421.2,2421.1,10.92985]
[1750472923654,7.1089,2421.7,2421.2,1.2389]
[1750472923854,1.36402321,2421.6,2421.3,4.5271]
[1750472924055,1.36402321,2421.5,2421.3,5.2298]
[1750472924255,2.60286321,2421.4,2421.3,5.2298]
[1750472924849,1.36402321,2421.4,2421.3,14.75855]
[1750472925055,1.23873,2421.6,2421.4,1.23879]
[1750472925257,1.23873,2421.6,2421.4,2.55809]
[1750472925453,1.23875,2421.5,2421.4,10.84799]
[1750472925650,1.23873,2421.6,2421.4,10.84799]
[1750472925957,1.23875,2421.5,2421.4,10.84799]
[1750472926254,1.23875,2421.5,2421.4,9.6092]
[1750472928349,1.23875,2421.5,2421.4,1.3193]
[1750472928855,1.23875,2421.5,2421.4,2.5581]
[1750472929057,1.23873,2421.6,2421.4,2.5581]
[1750472929454,1.23873,2421.6,2421.4,10.848]
[1750472930965,1.23873,2421.6,2421.4,10.91647599]
[1750472931359,1.23875,2421.5,2421.4,9.67767599]
[1750472932056,1.23875,2421.5,2421.4,10.91647599]
[1750472933059,1.23873,2421.6,2421.4,10.91647599]
[1750472933557,1.23875,2421.5,2421.4,10.91647599]
[1750472934057,1.23875,2421.5,2421.4,9.67767599]
[1750472935458,1.23875,2421.5,2421.4,10.91647599]
[1750472935661,1.23873,2421.6,2421.4,10.91647599]
[1750472935861,1.23873,2421.6,2421.5,1.3537]
[1750472936159,2.60024487,2421.6,2421.5,1.3537]
[1750472937461,2.60024487,2421.6,2421.5,9.6436]
[1750472937762,1.23873,2421.6,2421.5,9.6436]
[1750472938359,2.60052109,2421.6,2421.5,9.6436]
[1750472938560,1.23873,2421.6,2421.5,9.6436]
[1750472939454,2.60058214,2421.6,2421.5,9.6436]
[1750472940059,1.23875,2421.5,2421.4,0.06847599]
[1750472940260,1.23875,2421.5,2421.4,8.35837599]
[1750472941663,1.23875,2421.5,2421.4,9.75677599]
[1750472942960,1.23875,2421.5,2421.4,10.99557599]
[1750472943157,1.23875,2421.5,2421.4,9.75677599]
[1750472945262,0.6909,2421.7,2421.6,1.2387]
[1750472945451,1.36268914,2421.7,2421.6,1.67109877]
[1750472945655,2.60133914,2421.7,2421.6,9.96099877]
[1750472945856,2.60133914,2421.7,2421.6,10.66639877]
[1750472946061,2.60133914,2421.7,2421.6,11.97579877]
[1750472946256,2.60133914,2421.7,2421.6,10.3047]
[1750472946562,2.60133914,2421.7,2421.6,8.9953]
[1750472950072,2.60133914,2421.7,2421.6,12.2031]
[1750472952170,2.60133914,2421.7,2421.6,13.87419877]
[1750472953370,2.60133914,2421.7,2421.6,12.2031]
[1750472956775,2.60133914,2421.7,2421.6,13.87419877]
[1750472959378,2.60133914,2421.7,2421.6,5.58429877]
[1750472961280,2.60133914,2421.7,2421.6,5.65277476]
[1750472962773,1.23885,2421.3,2421.2,3.2078]
[1750472962976,1.23885,2421.3,2420.2,3.09845]
[1750472962977,1.23892,2421.2,2420.9,1.67109877]
[1750472963181,1.23878,2421.5,2421.2,1.2389]
[1750472963480,2.59897925,2421.4,2421.3,1.67109877]
[1750472963883,1.36017925,2421.4,2421.3,1.67109877]
[1750472964581,2.59897925,2421.4,2421.3,1.67109877]
[1750472964878,2.59897925,2421.4,2421.3,8.2899]
[1750472965174,8.74746893,2421.4,2420.1,2.38728968]
[1750472965376,3.2078,2420.6,2420.3,3.62662968]
[1750472965574,4.44701,2420.6,2420.3,3.62662968]
[1750472965779,3.2078,2420.6,2420.4,1.23931]
[1750472966081,3.2078,2420.6,2420.4,0.6438]
[1750472966679,4.44702,2420.6,2420.4,0.96621122]
[1750472967578,1.23926,2420.5,2420.4,0.96621122]
[1750472967778,1.23926,2420.5,2420.4,7.36121122]
[1750472968670,5.0,2420.5,2420.2,1.23939]
[1750472968875,5.59508968,2420.3,2419.9,6.395]
[1750472969085,4.44734,2420.0,2419.6,3.62697968]
[1750472969275,3.2078,2420.0,2419.6,0.33055588]
[1750472969480,3.2078,2420.0,2419.7,7.7688]
[1750472969881,3.2078,2420.0,2419.8,1.3738]
[1750472969882,1.23959,2419.9,2419.8,1.3738]
[1750472970075,3.2078,2420.0,2419.8,3.76108968]
[1750472970374,1.3794,2420.4,2419.8,3.76108968]
[1750472970375,1.35898408,2420.2,2419.8,3.76108968]
[1750472970579,1.35898408,2420.2,2420.1,3.62675968]
[1750472970793,1.35898408,2420.2,2420.1,57.59775968]
[1750472971082,3.2078,2420.5,2420.3,1.23936]
[1750472971281,3.2078,2420.5,2420.4,6.395]
[1750472971483,3.2078,2420.5,2420.4,9.00331]
[1750472973187,3.2078,2420.5,2420.4,11.39059968]
[1750472974384,3.2078,2420.5,2420.4,11.45907567]
[1750472974585,1.23906,2420.9,2420.6,1.23918]
[1750472974586,3.2078,2420.8,2420.6,1.23918]
[1750472974780,3.2078,2420.8,2420.7,6.396]
[1750472974981,3.2078,2420.8,2420.7,8.32676]
[1750472976186,3.2078,2420.8,2420.7,7.0876]
[1750472978587,4.56514669,2420.8,2419.5,3.09944]
[1750472978789,3.2078,2420.1,2419.9,0.695]
[1750472979087,4.4473,2420.1,2419.7,9.19275]
[1750472979890,4.4473,2420.1,2419.8,1.23962]
[1750472980488,3.2078,2420.1,2419.9,1.23957]
[1750472980886,3.2078,2420.1,2419.8,1.2396]
[1750472981086,3.2078,2420.1,2419.8,1.23959]
[1750472981594,2.38728968,2419.9,2419.1,0.41328561]
[1750472981887,3.2078,2420.0,2419.8,2.38728968]
[1750472982080,3.2078,2420.0,2419.9,6.54]
[1750472982882,3.2078,2420.0,2419.9,7.77957]
[1750472983187,3.2078,2420.0,2419.9,6.54]
[1750472984188,4.44732,2420.0,2419.9,6.54]
[1750472984784,5.59508968,2420.0,2419.1,3.2078]
[1750472984987,4.4477,2419.3,2418.9,1.94975]
[1750472985188,4.4477,2419.3,2419.0,6.541]
[1750472985690,4.4477,2419.3,2419.0,7.78102]
[1750472985891,3.2078,2419.3,2419.0,55.4176]
[1750472986093,4.4477,2419.3,2419.0,55.4176]
[1750472986693,1.23993,2419.2,2419.0,55.4176]
[1750472987292,2.38728968,2419.1,2418.5,6.542]
[1750472987592,3.2078,2418.9,2418.6,7.78221]
[1750472987792,4.44789,2418.9,2418.6,9.75591]
[1750472988195,4.44789,2418.9,2418.6,8.5157]
[1750472988395,4.44791,2418.9,2418.6,8.5157]
[1750472988790,3.2078,2418.9,2418.6,8.5157]
[1750472989194,1.24014,2418.8,2418.6,8.5157]
[1750472989393,1.24014,2418.8,2418.6,56.1117]
[1750472989697,1.24014,2418.8,2418.6,56.18017599]
[1750472990195,1.24014,2418.8,2418.6,54.20647599]
[1750472990396,1.93664,2418.8,2418.6,54.20647599]
[1750472990794,3.2078,2418.9,2418.6,56.59376567]
[1750472991092,3.2078,2418.9,2418.7,3.34145]
[1750472991288,3.2078,2418.9,2418.8,1.3909]
[1750472991488,3.2078,2418.9,2418.8,2.63103]
[1750472991694,1.24015,2418.8,2418.6,54.20647599]
[1750472991896,3.2078,2418.9,2418.8,1.24013]
[1750472992293,3.2078,2418.9,2418.8,2.63103]
[1750472993199,1.24007,2419.0,2418.8,1.3909]
[1750472993399,1.24007,2419.0,2418.7,1.24015]
[1750472993598,1.24007,2419.0,2418.7,2.57215]
[1750472993799,1.24007,2419.0,2418.7,1.332]
[1750472994098,1.24009,2418.9,2418.7,1.332]
[1750472994999,1.24006,2419.0,2418.7,1.332]
[1750472995200,1.24009,2418.9,2418.7,1.332]
[1750472996200,1.24013,2418.8,2418.7,1.332]
[1750472996401,1.24011,2418.9,2418.7,1.332]
[1750472996697,1.24011,2418.9,2418.7,3.71928968]
[1750472997500,1.24018,2418.7,2418.6,0.06847599]
[1750472997801,4.44791,2418.9,2418.6,9.28876567]
[1750472998000,3.2078,2418.9,2418.6,6.90147599]
[1750472998196,1.24018,2418.7,2418.6,6.90147599]
[1750472999902,1.3836,2419.1,2418.6,9.28876567]
[1750473000104,1.24018,2418.7,2418.6,10.67036567]
[1750473000902,1.24018,2418.7,2418.6,8.28307599]
[1750473002110,1.24016,2418.8,2418.6,8.28307599]
[1750473002410,1.24018,2418.7,2418.6,8.28307599]
[1750473004996,1.24018,2418.7,2418.6,10.67036567]
[1750473005807,3.2078,2418.9,2418.6,10.67036567]
[1750473006007,1.24018,2418.7,2418.6,10.67036567]
[1750473007299,1.24018,2418.7,2418.6,8.28307599]
[1750473009505,3.2078,2418.9,2418.6,10.67036567]
[1750473009711,1.24015,2418.8,2418.7,1.4117]
[1750473010108,1.24013,2418.8,2418.7,1.4117]
[1750473010516,3.2078,2418.9,2418.7,1.4117]
[1750473010709,4.44791,2418.9,2418.7,2.65188]
[1750473011212,4.44791,2418.9,2418.8,1.2853]
[1750473011609,3.2078,2418.9,2418.8,3.67258968]
[1750473011802,3.2078,2418.9,2418.8,4.91271968]
[1750473012612,4.44788,2418.9,2418.8,3.67258968]
[1750473013913,5.81222155,2418.9,2418.8,1.2853]
[1750473014305,4.57214155,2418.9,2418.8,1.2853]
[1750473015009,5.81222155,2418.9,2418.8,1.2853]
[1750473016015,5.81222155,2418.9,2418.8,1.2853]
[1750473017508,3.2078,2418.9,2418.8,1.2853]
[1750473017715,3.2078,2418.9,2418.8,1.9274]
[1750473018419,4.57377686,2418.9,2418.8,3.16753]
[1750473018820,4.57377686,2418.9,2418.8,1.9274]
[1750473019116,4.57377686,2418.9,2418.8,3.16753]
[1750473019317,4.57377686,2418.9,2418.8,1.9274]
[1750473019515,3.2078,2418.9,2418.8,3.16753]
[1750473021120,1.23994,2419.2,2418.9,1.24005]
[1750473021417,1.36612295,2419.1,2419.0,6.763]
[1750473021612,1.36612295,2419.1,2419.0,8.00303]
[1750473022319,5.14558,2419.3,2419.1,1.23996]
[1750473022514,1.36596667,2419.2,2419.1,3.62724968]
[1750473022716,3.9057,2419.3,2419.2,1.23993]
[1750473023016,5.27168101,2419.3,2419.1,3.62722968]
[1750473023217,3.9057,2419.3,2419.1,4.99252968]
[1750473023818,5.14558,2419.3,2419.1,4.99252968]
[1750473024118,5.14558,2419.3,2419.1,3.75258968]
[1750473025918,5.14558,2419.3,2419.1,1.3653]
[1750473026617,5.14558,2419.3,2419.1,2.60527]
[1750473026815,5.14558,2419.3,2419.2,0.6628]
[1750473035433,5.14558,2419.3,2419.2,0.73127599]
[1750473038349,3.9057,2419.3,2419.2,0.73127599]
[1750473038539,5.14558,2419.3,2419.2,0.73127599]
[1750473044451,3.9057,2419.3,2419.2,0.73127599]
[1750473044645,5.14558,2419.3,2419.2,0.73127599]
[1750473047356,6.51488201,2419.3,2419.2,0.73127599]
[1750473048978,5.27500201,2419.3,2419.2,1.97120599]
[1750473049556,6.51488201,2419.3,2419.2,0.06847599]
[1750473051757,5.27500201,2419.3,2419.2,1.30840599]
[1750473052255,6.51488201,2419.3,2419.2,0.06847599]
[1750473057563,6.51488201,2419.3,2419.2,1.30840599]
[1750473058266,6.51488201,2419.3,2419.2,0.71527599]
[1750473058965,6.51488201,2419.3,2419.2,1.95520599]
[1750473059268,6.51488201,2419.3,2419.2,0.71527599]
[1750473061868,4.57710201,2419.3,2419.2,0.71527599]
[1750473062069,3.2078,2419.6,2419.2,2.12217599]
[1750473062270,3.28013921,2419.5,2419.3,7.89286]
[1750473062569,1.9101,2419.5,2419.4,1.23983]